lending/lending_fUSD_20250323
["ID","MTS","AMOUNT","RATE_DAILY","PERIOD"]
[356576426,1742707488100,-1609.0,0.000118,2]
[356576427,1742707488125,-1000.0,0.000118,2]
[356576428,1742707488150,-1000.0,0.000118,2]
[356576429,1742707488174,-1000.0,0.000118,2]
[356576430,1742707488203,-1000.0,0.000118,2]
[356576431,1742707488392,-1000.0,0.000118,2]
[356576432,1742707488422,-648.89623194,0.00011848,2]
[356576433,1742707488446,-6845.79808686,0.0001188,2]
[356576434,1742707488469,-9670.66349787,0.0001188,2]
[356576435,1742707488492,-10996.8100744,0.0001188,2]
[356576436,1742707488521,-834.439,0.000119,2]
[356576437,1742707488545,-251.81131404,0.000119,2]
[356576438,1742707488570,-177.15458499,0.000119,2]
[356576439,1742707488593,-366.31277712,0.000119,2]
[356576440,1742707488617,-648.89623194,0.000119,2]
[356576441,1742707488642,-164.61014946,0.00011973,2]
[356576442,1742707488666,-269.23266157,0.00011999,2]
[356576443,1742707488690,-453.76031723,0.00011999,2]
[356576444,1742707488719,-285346.72874926,0.00012,2]
[356576445,1742707519956,868.28860153,9e-05,2]
[356576447,1742707554930,5448.25008386,6.94e-05,2]
[356576448,1742707562571,9105.33189109,8e-05,2]
[356576451,1742707627828,84578.12942352,9.14e-05,2]
[356576452,1742707627852,84456.54175107,9.14e-05,2]
[356576495,1742707684814,981.33092941,9.5e-05,2]
[356576496,1742707704710,376.76497772,7.888e-05,2]
[356576497,1742707727670,-5681.59604379,0.0001,2]
[356576498,1742707727718,-499.08332212,0.0001,2]
[356576499,1742707727749,-5182.51272167,0.0001,2]
[356576500,1742707727788,-814.01618772,0.0001,2]
[356576506,1742707752495,-300.0,9.999e-05,2]
[356576507,1742707752525,-5441.34203351,0.0001,2]
[356576508,1742707752630,-4296.43133518,0.0001,2]
[356576523,1742707777545,-5890.69735101,0.0001,2]
[356576524,1742707777629,-4772.21445287,0.0001,2]
[356576525,1742707790989,167.30851,0.0001273,8]
[356576531,1742707809680,1089.92,9.44e-05,2]
[356576537,1742707831673,-150.0,9.999e-05,2]
[356576538,1742707831684,-394.0998858,0.0001,2]
[356576539,1742707831734,-35064.41359977,0.0001,2]
[356576540,1742707831745,-434.34465066,0.0001,2]
[356576541,1742707831851,-943511.11905379,0.0001,2]
[356576542,1742707831863,-553185.04596505,0.0001,2]
[356576543,1742707831874,-686.38615094,0.0001,2]
[356576544,1742707831884,-397.09512393,0.0001,2]
[356576545,1742707832055,-1872.68017004,0.0001,2]
[356576546,1742707832067,-5583.70590166,0.0001,2]
[356576547,1742707832078,-328.01300429,0.0001,2]
[356576548,1742707832089,-3521.37300828,0.0001,2]
[356576549,1742707832099,-3925.50276661,0.0001,2]
[356576550,1742707832110,-2618.47505367,0.0001,2]
[356576551,1742707832121,-2528.35218345,0.0001,2]
[356576552,1742707832133,-796.69487304,0.0001,2]
[356576553,1742707832144,-1206.27708611,0.0001,2]
[356576567,1742707837698,-88143.68939692,0.0001,2]
[356576568,1742707837710,-66521.9944052,0.0001,2]
[356576569,1742707837931,-0.24739889,0.0001,2]
[356576603,1742707839963,-1141636.99414596,0.0001,2]
[356576604,1742707839973,-240.44414776,0.0001,2]
[356576605,1742707839984,-1162.06106674,0.00011484,2]
[356576606,1742707839994,-1162.06106674,0.0001153,2]
[356576607,1742707840003,-1162.06106674,0.00011576,2]
[356576608,1742707840013,-150.0,0.00011584,2]
[356576609,1742707840023,-1162.06106674,0.00011623,2]
[356576610,1742707840034,-1162.06106674,0.00011669,2]
[356576611,1742707840046,-23900.0,0.00011686,2]
[356576612,1742707840057,-250.0,0.00011686,2]
[356576613,1742707840067,-1089.92,0.00011704,2]
[356576614,1742707840078,-1162.06106674,0.00011715,2]
[356576615,1742707840088,-150.99,0.00011715,2]
[356576616,1742707840098,-1162.06106674,0.00011761,2]
[356576617,1742707840107,-169.28846626,0.0001177,2]
[356576618,1742707840116,-1162.06106674,0.00011808,2]
[356576619,1742707840129,-150.0,0.00011822,2]
[356576620,1742707840138,-1162.06106674,0.00011854,2]
[356576621,1742707840148,-4822.9311,0.000119,2]
[356576622,1742707840158,-606.2145,0.000119,2]
[356576623,1742707840168,-1609.1152,0.000119,2]
[356576624,1742707840177,-4255.8267,0.000119,2]
[356576625,1742707840186,-21462.2504,0.000119,2]
[356576626,1742707840196,-1000.0,0.000119,2]
[356576627,1742707840207,-1209.6983,0.000119,2]
[356576628,1742707840216,-2607.6417,0.000119,2]
[356576629,1742707840228,-2500.0,0.000119,2]
[356576630,1742707840237,-4926.0831,0.000119,2]
[356576631,1742707840246,-1162.06106674,0.000119,2]
[356576632,1742707840256,-9013.9145,0.000119,2]
[356576633,1742707840265,-244.20851808,0.000119,2]
[356576634,1742707840274,-318.35401426,0.00011973,2]
[356576635,1742707840283,-84053.41179883,0.0001198,2]
[356576636,1742707840293,-3615877.5460995,0.00012,2]
[356576637,1742707840305,-2105.556208,0.00012,2]
[356576643,1742707841348,-2695.41962507,0.00012,2]
[356576644,1742707841364,-354.63427541,0.00012,2]
[356576645,1742707841381,-3607.85910939,0.00012,2]
[356576655,1742707842775,-3549.96844399,0.00011808,2]
[356576656,1742707843875,-4656.8773694,0.00011808,2]
[356576657,1742707843886,-1793.14418661,0.00011808,2]
[356576658,1742707843895,-806.84325337,0.00012,2]
[356576659,1742707843906,-8402.4,0.00012,2]
[356576660,1742707843917,-101424.34993951,0.00012,2]
[356576663,1742707845740,-3104.192539,0.00012,2]
[356576664,1742707845752,-5722.32155505,0.00012,2]
[356576665,1742707845764,-379.89623438,0.00012,2]
[356576666,1742707845812,-604.84,0.00012,2]
[356576667,1742707845823,-769.686283,0.00012,2]
[356576668,1742707845861,-599.6429714,0.00012,2]
[356576669,1742707845873,-2169.16492796,0.00012,2]
[356576670,1742707845923,-335.30570427,0.00012,2]
[356576671,1742707845934,-4672.00804507,0.00012,2]
[356576672,1742707845989,-49213.03305148,0.00012,2]
[356576673,1742707846050,-6328.26491738,0.00012,2]
[356576674,1742707846061,-680.31065153,0.00012,2]
[356576675,1742707846072,-470.22347517,0.00012,2]
[356576676,1742707846118,-977.54548873,0.00012,2]
[356576677,1742707846129,-879.41035815,0.00012,2]
[356576678,1742707846140,-437.38111631,0.00012,2]
[356576679,1742707846152,-543.2619752,0.00012,2]
[356576681,1742707990291,-250.0,0.00011635,2]
[356576682,1742708018372,-150.0,0.00011767,2]
[356576683,1742708026531,-150.0,0.0001189,2]
[356576684,1742708096350,167.30851,0.0001255,7]
[356576687,1742708548696,-241.312374,0.0001144,2]
[356576688,1742708548718,-150.0,0.00011498,2]
[356576689,1742708548740,-150.0,0.00011624,2]
[356576690,1742708548761,-356.66098113,0.00011627,2]
[356576691,1742708548783,-150.0,0.00011799,2]
[356576692,1742708548804,-1609.1152,0.000118,2]
[356576693,1742708548825,-2607.6417,0.000118,2]
[356576694,1742708548850,-4926.0831,0.000118,2]
[356576695,1742708548871,-1209.6983,0.000118,2]
[356576696,1742708548893,-348.61832004,0.000118,2]
[356576697,1742708548914,-3678.5863,0.000118,2]
[356576698,1742708548936,-9013.9145,0.000118,2]
[356576699,1742708548957,-35401.6349,0.000118,2]
[356576700,1742708548978,-6452.7062,0.000118,2]
[356576701,1742708548999,-146080.895,0.000118,2]
[356576702,1742708549021,-468.1256,0.000118,2]
[356576703,1742708549042,-348.61832002,0.00011811,2]
[356576704,1742708549064,-348.61832002,0.00011822,2]
[356576705,1742708549086,-348.61832002,0.00011833,2]
[356576706,1742708549107,-348.61832002,0.00011844,2]
[356576707,1742708549129,-9999.99,0.00011844,2]
[356576708,1742708549152,-150.99,0.00011844,2]
[356576709,1742708549177,-6163.68,0.00011844,2]
[356576710,1742708549200,-243.82,0.00011844,2]
[356576711,1742708549222,-999.99,0.00011844,2]
[356576712,1742708549245,-348.61832002,0.00011856,2]
[356576713,1742708549269,-348.61832002,0.00011867,2]
[356576714,1742708549290,-340.46133964,0.00011873,2]
[356576715,1742708549312,-501.46067663,0.00011873,2]
[356576716,1742708549333,-318.35401426,0.00011873,2]
[356576717,1742708549356,-348.61832002,0.00011878,2]
[356576718,1742708549376,-348.61832002,0.00011889,2]
[356576719,1742708549397,-1828.625,0.000119,2]
[356576720,1742708549419,-167622.253,0.000119,2]
[356576721,1742708549440,-1276.2392,0.000119,2]
[356576722,1742708549461,-21462.2504,0.000119,2]
[356576723,1742708549482,-606.2145,0.000119,2]
[356576724,1742708549504,-867.2191,0.000119,2]
[356576725,1742708549525,-1000.0,0.000119,2]
[356576726,1742708549546,-238.19716855,0.000119,2]
[356576727,1742708549568,-4255.8267,0.000119,2]
[356576728,1742708549590,-348.61832002,0.000119,2]
[356576729,1742708549611,-244.20851808,0.000119,2]
[356576730,1742708549632,-155.9888447,0.000119,2]
[356576731,1742708549654,-501.00436287,0.00011973,2]
[356576732,1742708549676,-505998.77574772,0.00012,2]
[356576743,1742708907076,-980.92,9.965e-05,2]
[356576744,1742708907097,-2500.0,0.000118,2]
[356576745,1742708907120,-1000.0,0.00011884,2]
[356576746,1742708907142,-200.0,0.00011896,2]
[356576747,1742708907165,-150.0,0.00011898,2]
[356576748,1742708907185,-1769.08,0.000119,2]
[356576768,1742709031924,-250.0,0.00011896,2]
[356576769,1742709031934,-150.0,0.00011896,2]
[356576770,1742709031943,-150.0,0.00011898,2]
[356576771,1742709031954,-1500.0,0.000119,2]
[356576772,1742709031963,-3053.8511,0.000119,2]
[356576773,1742709031972,-1000.0,0.000119,2]
[356576774,1742709031982,-327.60578498,0.00011999,2]
[356576775,1742709031991,-352.50074263,0.00011999,2]
[356576776,1742709032000,-2593.4138592,0.00012,2]
[356576777,1742709032016,-757.19135972,0.00012,2]
[356576778,1742709032027,-7993.38447862,0.00012,2]
[356576779,1742709032046,-4007.18167774,0.00012,2]
[356576780,1742709032102,-580.99624631,0.00012,2]
[356576781,1742709032161,-3079.51141144,0.00012,2]
[356576782,1742709032172,-2501.25394069,0.00012,2]
[356576783,1742709032185,-293.49962424,0.00012,2]
[356576784,1742709032196,-37569.46350923,0.00012,2]
[356576785,1742709032208,-759.09588557,0.00012,2]
[356576786,1742709032227,-9187.9905704,0.00012,2]
[356576802,1742709037812,-1004.60264058,0.00012,2]
[356576803,1742709037868,-537.43580011,0.00012,2]
[356576804,1742709037880,-1233.42756601,0.00012,2]
[356576805,1742709037947,-13733.22820219,0.00012,2]
[356576806,1742709037960,-9233.78530608,0.00012,2]
[356576807,1742709037983,-560.05861585,0.00012,2]
[356576808,1742709037994,-5048.8,0.00012,2]
[356576809,1742709038043,-16710.41070131,0.00012,2]
[356576810,1742709038099,-258.1116423,0.00012,2]
[356576813,1742709040178,-1613648.76549482,0.00012,2]
[356576814,1742709040188,-2144663.90210233,0.00012,2]
[356576815,1742709040199,-849.50815933,0.00012,2]
[356576829,1742709042867,-800.069992,0.00012,2]
[356576830,1742709042925,-4325.99470946,0.00012,2]
[356576831,1742709042937,-1152.9712,0.00012,2]
[356576832,1742709042948,-676.16000008,0.00012,2]
[356576833,1742709042985,-1017.6830018,0.00012,2]
[356576834,1742709042996,-1189.88173211,0.00012,2]
[356576835,1742709043007,-446.51173508,0.00012,2]
[356576836,1742709043019,-15275.11202038,0.00012,2]
[356576837,1742709043030,-39398.49353293,0.00012,2]
[356576838,1742709043041,-1723.45009959,0.00012,2]
[356576839,1742709043060,-3867.34,0.00012,2]
[356576840,1742709044088,-2782.7,0.00012,2]
[356576841,1742709044099,-1034.7613594,0.00012,2]
[356576842,1742709044111,-3275.53723411,0.00012,2]
[356576843,1742709044123,-6266.8835218,0.00012,2]
[356576849,1742709045946,-1427.26659171,0.00012,2]
[356576850,1742709045957,-1159.3,0.00012,2]
[356576851,1742709045968,-4855.7796792,0.00012,2]
[356576852,1742709045979,-500.0,0.00012,2]
[356576853,1742709045989,-11615.0282456,0.00012,2]
[356576854,1742709046024,-1000.0,0.00012,2]
[356576855,1742709046035,-4445.38032,0.00012,2]
[356576856,1742709046141,-62493.44426171,0.00012,2]
[356576857,1742709046202,-63175.84143418,0.00012,2]
[356576858,1742709046261,-38412.7285714,0.00012,2]
[356576859,1742709046272,-64187.28539569,0.00012,2]
[356576860,1742709046283,-9771.2,0.00012,2]
[356576864,1742709110695,174.28267,0.00012,6]
[356576865,1742709163449,190.08,9.671e-05,2]
[356576876,1742709482526,174.28268,0.00012,6]
[356576877,1742709923718,986.38,9.633e-05,2]
[356576878,1742709929567,2007.0,8.1e-05,2]
[356576896,1742710122379,241.312374,0.00011329,2]
[356576897,1742710146396,39.63549398,0.00011304,2]
[356576898,1742710146419,936.28450602,0.00011304,2]
[356576902,1742710177066,164.95,0.00011262,2]
[356576903,1742710212363,250.0,0.00011181,2]
[356576904,1742710232106,-23900.0,0.00011386,2]
[356576905,1742710232116,-150.0,0.00011429,2]
[356576906,1742710232125,-187.52,0.00011542,2]
[356576907,1742710232134,-1000.0,0.00011573,2]
[356576908,1742710232143,-414.95474695,0.00011608,2]
[356576909,1742710232152,-224.2655421,0.00011626,2]
[356576910,1742710232161,-14977.6257,0.000117,2]
[356576911,1742710232170,-224.26554208,0.00011713,2]
[356576912,1742710232179,-503.0,0.00011726,2]
[356576913,1742710232188,-224.26554208,0.000118,2]
[356576914,1742710232198,-9999.99,0.000118,2]
[356576915,1742710232207,-6934.20484323,0.000118,2]
[356576916,1742710232218,-2530.06960304,0.000118,2]
[356576917,1742710232369,-5691.40555373,0.000118,2]
[356576918,1742710232378,-121.97752356,0.000118,2]
[356576919,1742710232415,-1788.11247644,0.000118,2]
[356576920,1742710232424,-182.0,0.00011863,2]
[356576921,1742710232433,-1609.1152,0.00011873,2]
[356576922,1742710232443,-599.62832356,0.00011873,2]
[356576923,1742710232454,-6.58617644,0.00011873,2]
[356576924,1742710232463,-340.46133964,0.00011873,2]
[356576925,1742710232472,-318.35401426,0.00011873,2]
[356576926,1742710232481,-122.32384075,0.00011873,2]
[356576927,1742710232492,-226.29447929,0.00011873,2]
[356576928,1742710232502,-141.05594932,0.00011897,2]
[356576929,1742710232513,-845.32405068,0.00011897,2]
[356576930,1742710232522,-150.0,0.00011899,2]
[356576931,1742710232531,-4255.8267,0.000119,2]
[356576932,1742710232540,-2202.40878746,0.000119,2]
[356576934,1742710232551,-2723.67431254,0.000119,2]
[356576936,1742710232560,-749.45591045,0.000119,2]
[356576938,1742710232575,-1858.18578955,0.000119,2]
[356576940,1742710232584,-1000.0,0.000119,2]
[356576942,1742710232593,-2285.43879358,0.000119,2]
[356576944,1742710232604,-4309.6899302,0.000119,2]
[356576945,1742710232615,-1346.29256173,0.000119,2]
[356576946,1742710232626,-486.87103,0.000119,2]
[356576947,1742710232637,-585.62218449,0.000119,2]
[356576949,1742710232646,-349.44434442,0.000119,2]
[356576951,1742710232657,-860.25395558,0.000119,2]
[356576953,1742710232667,-956.67078228,0.000119,2]
[356576954,1742710232682,-687.92150937,0.000119,2]
[356576960,1742710238212,-17502.56,0.000118,2]
[356576961,1742710238222,-1120.20120835,0.000119,2]
[356576962,1742710238232,-3678.5863,0.000119,2]
[356576963,1742710238241,-500.0,0.000119,2]
[356576964,1742710238251,-6452.7062,0.000119,2]
[356576965,1742710238260,-1828.625,0.000119,2]
[356576966,1742710238269,-1276.2392,0.000119,2]
[356576968,1742710238278,-1335.3447,0.000119,2]
[356576970,1742710238288,-21177.65996563,0.000119,2]
[356576987,1742710240441,-30848.13093437,0.000119,2]
[356576988,1742710240451,-238.19716855,0.00011927,2]
[356576989,1742710240460,-243.82,0.00011973,2]
[356576990,1742710240470,-999.99,0.00011973,2]
[356576991,1742710240479,-150.99,0.00011973,2]
[356576992,1742710240488,-6163.68,0.00011973,2]
[356576993,1742710240498,-501.00436287,0.00011973,2]
[356576994,1742710240508,-501.46067663,0.00011973,2]
[356576995,1742710240518,-2105016.62895991,0.00012,2]
[356576996,1742710240529,-500.3348243,0.00012,2]
[356576997,1742710240541,-387.37462936,0.00012,2]
[356577002,1742710243080,-724.35005528,0.00012,2]
[356577025,1742710244108,-762.03254079,0.00012,2]
[356577026,1742710244124,-4131.92845925,0.00012,2]
[356577027,1742710244135,-1641.91733968,0.00012,2]
[356577028,1742710244147,-619.2449657,0.00012,2]
[356577033,1742710246262,-26387.43279008,0.00012,2]
[356577034,1742710246274,-516.04217535,0.00012,2]
[356577035,1742710246328,-904.64662748,0.00012,2]
[356577036,1742710246388,-616.0,0.00012,2]
[356577039,1742710249026,2119.97,0.00031767,30]
[356577040,1742710422736,44869.84,0.00031767,30]
[356577045,1742711119661,1923.09336196,9e-05,2]
[356577046,1742711119686,3274.32786798,9e-05,2]
[356577047,1742711119709,2885.21431854,9e-05,2]
[356577048,1742711125516,389.11354944,0.000108,2]
[356577049,1742711125539,599.50533979,0.000108,2]
[356577050,1742711127567,2674.82252819,0.00011,2]
[356577051,1742711127591,1410.66988024,0.00011,2]
[356577052,1742711135976,1863.65798774,8e-05,2]
[356577053,1742711135999,3274.32786798,8e-05,2]
[356577054,1742711136022,3274.32786798,8e-05,2]
[356577055,1742711136045,3274.32786798,8e-05,2]
[356577056,1742711136068,3274.32786798,8e-05,2]
[356577057,1742711136098,336.61008275,8e-05,2]
[356577059,1742711164878,5370.53468777,8e-05,2]
[356577085,1742711279899,981.33092941,9.5e-05,2]
[356577088,1742711299625,376.76497772,7.888e-05,2]
[356577092,1742711323554,241.312374,9.778e-05,2]
[356577094,1742711349903,-5498.05784074,9.828e-05,2]
[356577097,1742711349943,-130.46962754,9.999e-05,2]
[356577100,1742711349991,-169.53037246,9.999e-05,2]
[356577103,1742711350036,-5458.99709582,0.0001,2]
[356577104,1742711350090,-1370.49075914,0.0001,2]
[356577116,1742711374850,-5881.07838219,9.99e-05,2]
[356577119,1742711374923,-5753.83595245,9.99e-05,2]
[356577123,1742711399991,-2100.89780697,9.99e-05,2]
[356577125,1742711400043,-4012.87886192,0.0001,2]
[356577129,1742711400103,-3166.83180601,0.0001,2]
[356577135,1742711432380,-300.0,9.999e-05,2]
[356577136,1742711432392,-150.0,9.999e-05,2]
[356577137,1742711432402,-6060.25076713,0.0001,2]
[356577138,1742711432413,-24880.20078683,0.0001,2]
[356577139,1742711432555,-1360.92472961,0.0001,2]
[356577187,1742711438306,-4235.81073391,0.0001,2]
[356577233,1742711440547,-446.48610923,0.0001,2]
[356577234,1742711440561,-1379079.60444239,0.0001,2]
[356577235,1742711440571,-551.2257408,0.00010899,2]
[356577236,1742711440582,-250.0,0.00010959,2]
[356577237,1742711440592,-150.0,0.00010989,2]
[356577238,1742711440602,-255.0,0.00010999,2]
[356577239,1742711440612,-150.0,0.00011,2]
[356577240,1742711440622,-1226.45,0.0001102,2]
[356577241,1742711440631,-240.44414776,0.00011275,2]
[356577242,1742711440641,-500.0,0.00011479,2]
[356577243,1742711440650,-434.66918734,0.00011572,2]
[356577244,1742711440660,-1570.849,0.0001176,2]
[356577245,1742711440669,-180.637,0.0001176,2]
[356577246,1742711440678,-250.0,0.0001177,2]
[356577247,1742711440688,-459.551,0.000119,2]
[356577248,1742711440697,-292.68801142,0.000119,2]
[356577249,1742711440707,-313.75648809,0.000119,2]
[356577250,1742711440716,-30848.1309,0.000119,2]
[356577251,1742711440725,-313.75648801,0.00011901,2]
[356577252,1742711440735,-313.75648801,0.00011902,2]
[356577253,1742711440744,-313.75648801,0.00011903,2]
[356577254,1742711440754,-313.75648801,0.00011904,2]
[356577255,1742711440763,-313.75648801,0.00011904,2]
[356577256,1742711440773,-313.75648801,0.00011905,2]
[356577257,1742711440782,-313.75648801,0.00011906,2]
[356577258,1742711440791,-313.75648801,0.00011907,2]
[356577259,1742711440801,-313.75648801,0.00011908,2]
[356577260,1742711440810,-500.0,0.00011918,2]
[356577261,1742711440820,-2284.0,0.00011973,2]
[356577262,1742711440829,-501.46067663,0.00011973,2]
[356577263,1742711440839,-1000.0,0.00011979,2]
[356577264,1742711440848,-124864.58436548,0.0001198,2]
[356577265,1742711440858,-952.59,0.00011999,2]
[356577266,1742711440867,-151.0,0.00011999,2]
[356577267,1742711440877,-593095.41950516,0.00012,2]
[356577268,1742711440887,-2682.95,0.00012,2]
[356577269,1742711440896,-417.66,0.00012,2]
[356577270,1742711440906,-705.9684556,0.00012,2]
[356577271,1742711440915,-1070.6991908,0.00012,2]
[356577272,1742711440924,-9792.131214,0.00012,2]
[356577273,1742711440934,-2776270.16564049,0.00012,2]
[356577274,1742711440946,-9994.97766132,0.00012,2]
[356577275,1742711440957,-260.97339497,0.00012,2]
[356577276,1742711440968,-25811.36638528,0.00012,2]
[356577280,1742711444556,-15190.10659024,0.00012,2]
[356577281,1742711444569,-1014.297339,0.00012,2]
[356577282,1742711444581,-63421.2298028,0.00012,2]
[356577283,1742711444592,-306.0,0.00012,2]
[356577284,1742711446169,-28943.01858766,0.00012,2]
[356577285,1742711446185,-22392.2668119,0.00012,2]
[356577286,1742711446207,-4669.0,0.00012,2]
[356577287,1742711446294,-657.43207884,0.00012,2]
[356577288,1742711446451,-260200.00654926,0.00012,2]
[356577289,1742711446537,-2955.0078133,0.00012,2]
[356577290,1742711469887,400.0,0.000115,4]
[356577291,1742711471986,900.0,0.000116,4]
[356577292,1742711474076,1300.0,0.000117,4]
[356577293,1742711476166,1800.0,0.000118,4]
[356577294,1742711478267,2300.0,0.000119,4]
[356577297,1742712290678,-1065.17,9.803e-05,2]
[356577298,1742712290706,-150.0,0.00010682,2]
[356577299,1742712290736,-150.0,0.00010783,2]
[356577300,1742712290762,-150.0,0.00011352,2]
[356577301,1742712290789,-698.77959644,0.00011462,2]
[356577302,1742712290819,-21192.73,0.00011562,2]
[356577303,1742712290848,-698.77959643,0.00011644,2]
[356577304,1742712290878,-434.66918734,0.00011744,2]
[356577305,1742712290905,-2613.3244,0.000119,2]
[356577306,1742712290934,-3081.5259,0.000119,2]
[356577307,1742712290962,-1163.768,0.000119,2]
[356577308,1742712290989,-452.985,0.000119,2]
[356577309,1742712291018,-1000.0,0.0001195,2]
[356577310,1742712291044,-225.03201479,0.00011963,2]
[356577311,1742712291069,-514.47735808,0.00011963,2]
[356577312,1742712291093,-501.00436287,0.00011973,2]
[356577313,1742712291120,-3843.36,0.00011975,2]
[356577314,1742712291148,-261.97610836,0.00011979,2]
[356577315,1742712291171,-263.41921026,0.00011979,2]
[356577316,1742712291194,-150.0,0.00011997,2]
[356577317,1742712291219,-151.0,0.00011999,2]
[356577318,1742712291244,-1256.679,0.00011999,2]
[356577319,1742712291267,-180.638,0.00011999,2]
[356577320,1742712291290,-165.50032136,0.00011999,2]
[356577321,1742712291317,-209062.18194407,0.00012,2]
[356577322,1742712395985,255.74,0.00025,60]
[356577324,1742712435260,3266.89,0.00031784,30]
[356577335,1742712487849,392.51797849,0.00025,60]
[356577368,1742712631397,-813.44274679,0.00011954,2]
[356577371,1742712631408,-480.17886756,0.00011955,2]
[356577373,1742712631420,-150.02134318,0.00011955,2]
[356577375,1742712631431,-244.20851808,0.00011955,2]
[356577377,1742712631442,-237.07728927,0.00011955,2]
[356577378,1742712631455,-606.08240826,0.00011955,2]
[356577379,1742712631467,-150.0,0.00011959,2]
[356577380,1742712631480,-150.0,0.00011994,2]
[356577381,1742712631492,-300.0,0.00011998,2]
[356577382,1742712631503,-150.0,0.00011999,2]
[356577383,1742712631515,-11289.55884683,0.00012,2]
[356577384,1742712631530,-2016.81087589,0.00012,2]
[356577385,1742712631544,-3149.999975,0.00012,2]
[356577386,1742712631557,-973.725,0.00012,2]
[356577387,1742712631571,-10104.78256784,0.00012,2]
[356577388,1742712631583,-542.92,0.00012,2]
[356577389,1742712631597,-479.93,0.00012,2]
[356577390,1742712631614,-316.52362598,0.00012,2]
[356577391,1742712631628,-330.55581015,0.00012,2]
[356577392,1742712631643,-7597.58456803,0.00012,2]
[356577393,1742712631663,-3909.71870609,0.00012,2]
[356577394,1742712631687,-288.0,0.00012,2]
[356577395,1742712631699,-1075.43,0.00012,2]
[356577396,1742712631713,-1573.27801156,0.00012,2]
[356577397,1742712631727,-6891.26719767,0.00012,2]
[356577398,1742712631742,-423.51186156,0.00012,2]
[356577399,1742712631758,-1601.46032278,0.00012,2]
[356577400,1742712631771,-1129.79283877,0.00012,2]
[356577405,1742712637434,-772131.63054457,0.00012,2]
[356577406,1742712637445,-168609.58732189,0.00012,2]
[356577407,1742712637471,-2788.10435896,0.00012,2]
[356577408,1742712637482,-6600.13979168,0.00012,2]
[356577411,1742712639596,-9526.47575124,0.00012,2]
[356577412,1742712639608,-1260.3,0.00012,2]
[356577413,1742712639620,-1273.216,0.00012,2]
[356577414,1742712639631,-357.38789991,0.00012,2]
[356577415,1742712639658,-2597815.98195987,0.00012,2]
[356577416,1742712639668,-2282.6667852,0.00012047,2]
[356577417,1742712639678,-15000.9760331,0.00012055,2]
[356577418,1742712639688,-1065.17,0.00012067,2]
[356577419,1742712639700,-375.52586619,0.00012136,2]
[356577420,1742712639711,-1146.15238991,0.00012299,2]
[356577421,1742712639721,-1119.72955467,0.00012299,2]
[356577422,1742712639731,-202.0,0.00012301,2]
[356577423,1742712639741,-150.0,0.00012329,2]
[356577424,1742712639750,-500.0,0.00012349,2]
[356577425,1742712639759,-500.0,0.00012349,2]
[356577426,1742712639769,-500.0,0.00012349,2]
[356577427,1742712639779,-500.0,0.00012349,2]
[356577428,1742712639791,-209.68,0.00012349,2]
[356577429,1742712639801,-500.0,0.00012349,2]
[356577430,1742712639811,-500.0,0.00012349,2]
[356577431,1742712639822,-500.0,0.00012349,2]
[356577432,1742712639831,-500.0,0.00012349,2]
[356577433,1742712639840,-500.0,0.00012349,2]
[356577434,1742712639849,-500.0,0.00012349,2]
[356577435,1742712639859,-500.0,0.00012349,2]
[356577436,1742712639869,-500.0,0.00012349,2]
[356577437,1742712639878,-620.51,0.00012349,2]
[356577438,1742712639889,-411.97,0.000124,2]
[356577439,1742712639899,-158.76,0.000124,2]
[356577440,1742712639908,-168.66392169,0.00012713,2]
[356577441,1742712639917,-999.99,0.00012893,2]
[356577442,1742712639927,-2682.95,0.00012893,2]
[356577443,1742712639936,-150.0,0.00013,2]